Cogmind - Beta 10.2 @@@ ROGUE MODE // 2021.06.23 @ 00:52:31 Player: Virvatuli Result: Destroyed by G-47 Trooper with Particle Gun Performance ------------- Evolutions (0) 0 Regions Visited (2) 400 Robots Destroyed (12) 60 Value Destroyed (233) 233 Prototype IDs (1) 20 Alien Tech Used (0) 0 Bonus (25) 25 TOTAL SCORE: 738 Bonus ------- Follower Combat Kills 25 Cogmind --------- Core Integrity 0/250 Matter 300/300 Energy 16/100 System Corruption 0% Temperature Cool (9) Movement Walking (120) Location -10/Mines Parts ------- > --- POWER (1) -------- (None) > --- PROPULSION (2) --- Carbon-fiber Leg > --- UTILITY (2) ------ Heat Sink Improved Heat Sink > --- WEAPON (2) ------- Beamcaster > --- INVENTORY (4) ---- (None) Peak State ------------ > --- POWER ------------ (None) > --- PROPULSION ------- Carbon-fiber Leg > --- UTILITY ---------- Heat Sink Improved Heat Sink > --- WEAPON ----------- Beamcaster > --- INVENTORY -------- (None) [Rating: 12] Favorites ----------- Power Ion Engine Engine Ion Engine Propulsion Light Treads Treads Light Treads Leg Carbon-fiber Leg Hover Unit Improved Hover Unit Flight Unit Flight Unit Utility ECM Suite Device ECM Suite Weapon Light Assault Rifle Energy Gun Small Laser Ballistic Gun Light Assault Rifle Launcher Grenade Launcher Build | -11 -10 -10 ------- Run | Scr Mat Min Slots Evolved . | . . . Power . | . . . Propulsion . | . . . Utility . | . . . Weapon . | . . . Parts Attached 21 | 6 8 7 Power 2 | 1 . 1 Engine 2 | 1 . 1 Core . | . . . Reactor . | . . . Propulsion 6 | 2 2 2 Treads 2 | 2 . . Leg 1 | . . 1 Wheel . | . . . Hover 2 | . 2 . Flight 1 | . . 1 Utility 7 | 1 3 3 Device 7 | 1 3 3 Storage . | . . . Processor . | . . . Hackware . | . . . Protection . | . . . Artifact . | . . . Weapon 6 | 2 3 1 Energy Gun 3 | 2 . 1 Energy Cannon . | . . . Ballistic Gun 2 | . 2 . Ballistic Cannon . | . . . Launcher 1 | . 1 . Special Weapon . | . . . Impact Weapon . | . . . Slashing Weapon . | . . . Piercing Weapon . | . . . Special Melee Weapon . | . . . Unidentified Prototypes 1 | . . 1 Parts Lost 9 | . 5 4 Power 2 | . . 2 Propulsion 2 | . 2 . Utility 1 | . 1 . Weapon 4 | . 2 2 Highest Loss Streak 5 | . 5 3 Average Slot Usage (%) 64 | . 74 52 Engine 12 | . 14 10 Hover 4 | . 7 . Flight 1 | . . 3 Device 23 | . 24 22 Energy Gun 3 | . 5 . Ballistic Gun 17 | . 18 15 Launcher 1 | . 2 . Naked Turns 22 | . . 22 Heaviest Build 11 | 9 11 9 Greatest Support 40 | 40 40 4 Greatest Overweight (x) 2 | . 2 2 Average Overweight (x) . | . 1 . Largest Inventory Capacity 4 | 4 4 4 Average Capacity 4 | 4 4 4 Most Carried 4 | 4 2 4 Average Carried . | . . . Final Capacity 4 | 4 4 4 Final Carried . | . . . Class Distribution -------------------- 100% | Mutant Dominant Class ---------------- Mutant | -10/Materials Mutant | -10/Mines Resources | -11 -10 -10 ----------- Run | Scr Mat Min Matter Collected 436 | 260 35 141 Remotely 39 | 39 . . Salvage Created 212 | 81 81 50 Parts 19 | 3 13 3 Haulers Intercepted . | . . . Recyclers Shooed 2 | . 1 1 Parts Field Recycled . | . . . Retrieved Matter . | . . . Parts Self-Destructed . | . . . Prevented . | . . . Kills | -11 -10 -10 ------- Run | Scr Mat Min Combat Hostiles Destroyed 9 | . 6 3 Melee 1 | . . 1 Guns 6 | . 4 2 AOE 2 | . 2 . Classes Destroyed 4 | 1 3 . Recycler 1 | 1 . . Watcher 2 | . 2 . Swarmer 6 | . 3 3 Grunt 3 | . 3 . Best Kill Streak 7 | 1 7 2 Combat Bots Only 5 | . 5 2 Max Kills in Single Turn 2 | 1 2 1 Gunslinging . | . . . Exploded 1 | . 1 . Melee 1 | . . 1 Uniques/NPCs Destroyed . | . . . Combat | -11 -10 -10 -------- Run | Scr Mat Min Damage Taken 741 | . 393 348 Core 258 | . 73 185 Absorbed by Shields . | . . . Core Remaining (%) 100 | 100 . . Volleys Fired 33 | 3 19 11 Largest 2 | 2 2 2 Hottest 80 | 80 70 75 Shots Fired 48 | 6 28 14 Gun 43 | 6 23 14 Cannon . | . . . Launcher 5 | . 5 . Special . | . . . Kinetic 29 | . 16 13 Thermal 11 | 3 7 1 Explosive 5 | . 5 . Electromagnetic 3 | 3 . . Robot Hit Streak 8 | 5 8 3 Robot Miss Streak 4 | . 4 4 Penetration Max . | . . . Secondary Targets . | . . . Shots Hit Robots 28 | 5 15 8 Core Hits 24 | 2 18 4 Critical Hits . | . . . Critical Kills . | . . . Critical Parts Destroyed . | . . . Melee Attacks . | . . . Impact . | . . . Slashing . | . . . Piercing . | . . . Sneak Attacks . | . . . Combat Hostiles . | . . . Follow-up Attacks . | . . . Damage Inflicted 975 | 63 806 106 Guns 275 | 63 115 97 Cannons . | . . . Explosions 691 | . 691 . Melee . | . . . Ramming 9 | . . 9 Kinetic 149 | . 73 76 Thermal 442 | 23 398 21 Explosive 335 | . 335 . Electromagnetic 40 | 40 . . Impact . | . . . Slashing . | . . . Piercing . | . . . Highest Corruption . | . . . Average Corruption . | . . . Corruption Purged . | . . . Overload Shots . | . . . Overflow Damage . | . . . Projectiles . | . . . Explosions . | . . . Melee . | . . . Knockbacks . | . . . Impact . | . . . Kinetic . | . . . Secondary . | . . . Self-Inflicted Damage 4 | . . 4 Shots . | . . . Rammed 3 | . . 3 Targets Rammed 3 | . . 3 Kicked . | . . . Crushed . | . . . Highest Temperature 137 | 36 137 . Average Temperature 41 | 18 48 . Received Heat Transfer 183 | . 102 81 Siege Activations . | . . . Robots Corrupted . | . . . Combat Hostiles . | . . . Parts Fried . | . . . Impact Corruptions . | . . . Robots Melted . | . . . Combat Hostiles . | . . . Parts Melted . | . . . Heat Transferred 437 | 50 350 37 Parts Sabotaged . | . . . Parts Stolen . | . . . Parts Stripped . | . . . Power Chain Reactions . | . . . Missiles Intercepted . | . . . Alert | -11 -10 -10 ------- Run | Scr Mat Min Peak Influence 167 | 5 167 161 Initial 64 | . 3 64 Average 92 | 1 109 105 Maximum Alert Level . | . . . Low Security (%) 100 | 100 100 100 Level 1 . | . . . Level 2 . | . . . Level 3 . | . . . Level 4 . | . . . Level 5 . | . . . High Security . | . . . Max Security . | . . . Squads Dispatched 1 | . 1 . Investigation . | . . . Extermination . | . . . Reinforcement 1 | . 1 . Assault . | . . . Garrison . | . . . Intercept . | . . . Construction Impeded . | . . . Haulers Reinforced . | . . . Stealth | -11 -10 -10 --------- Run | Scr Mat Min Distress Signals 3 | . 3 . Communications Jammed . | . . . Distress Signals . | . . . Times Spotted 17 | . 9 8 Peak Tracking Total 6 | . 6 3 Tactical Retreats 2 | . . 2 Traps | -11 -10 -10 ------- Run | Scr Mat Min Traps Triggered . | . . . Indirectly . | . . . Trap Hack Attempts . | . . . Triggered . | . . . Disarmed . | . . . Reprogrammed . | . . . Reused . | . . . Traps Extracted . | . . . Installed . | . . . Triggered . | . . . Machines | -11 -10 -10 ---------- Run | Scr Mat Min Machines Disabled 5 | . 5 . Max in Single Turn 5 | . 5 . Machines Sabotaged . | . . . Garrisons Compromised . | . . . Overloaded Fab Kills . | . . . Fab Network Shutdowns . | . . . Hacking | -11 -10 -10 --------- Run | Scr Mat Min Machines Accessed . | . . . Terminals . | . . . Fabricators . | . . . Repair Stations . | . . . Recycling Units . | . . . Scanalyzers . | . . . Garrison Access . | . . . Total Hacks . | . . . Successful . | . . . Failed . | . . . Catastrophic . | . . . Database Lockouts . | . . . Manual . | . . . Terminals . | . . . Fabricators . | . . . Repair Stations . | . . . Recycling Units . | . . . Scanalyzers . | . . . Garrison Access . | . . . Terminal Hacks . | . . . Fabricator Hacks . | . . . Repair Station Hacks . | . . . Recycling Unit Hacks . | . . . Scanalyzer . | . . . Garrison Access Hacks . | . . . Unauthorized Hacks . | . . . Terminals . | . . . Fabricators . | . . . Repair Stations . | . . . Recycling Units . | . . . Scanalyzers . | . . . Garrison Access . | . . . Data Cores Recovered . | . . . Used . | . . . Hacking Detections . | . . . Full Trace Events . | . . . Feedback Events . | . . . Feedback Blocked . | . . . Robot Schematics Acquired . | . . . Robots Built . | . . . Matter . | . . . Time . | . . . Total Robot Build Rating . | . . . Part Schematics Acquired . | . . . Parts Built . | . . . Matter . | . . . Time . | . . . Total Part Build Rating . | . . . Parts Repaired . | . . . Time . | . . . Parts Recycled . | . . . Recycled Matter . | . . . Retrieved Matter . | . . . Retrieved Components . | . . . Parts Scanalyzed . | . . . Part Schematics Acquired . | . . . Parts Damaged . | . . . Bothacking | -11 -10 -10 ------------ Run | Scr Mat Min Used RIF Installer . | . . . Robots Hacked . | . . . Non-combat . | . . . Combat . | . . . Robot Hacks Applied . | . . . Relay Couplers Released . | . . . Robots Rewired . | . . . Allies Hacked . | . . . Hacks Repelled . | . . . Allies | -11 -10 -10 -------- Run | Scr Mat Min Total Allies 2 | . . 2 Largest Group 2 | . . 2 Highest-Rated Group 42 | . . 42 Highest-Rated Ally 31 | . . 31 Total Orders . | . . . Ally Attacks 8 | . . 8 Total Damage 170 | . . 170 Kills 1 | . . 1 Allies Corrupted . | . . . Allies Melted . | . . . Intel | -11 -10 -10 ------- Run | Scr Mat Min Robot Analysis Total . | . . . Derelict Logs Recovered . | . . . Drone Launches . | . . . Drone Recoveries . | . . . Exploration | -11 -10 -10 ------------- Run | Scr Mat Min Turns Passed 586 | 81 282 223 Spaces Moved 416 | 49 185 182 Core 236 | 17 111 108 Treads 38 | 32 6 . Legs . | . . . Wheels . | . . . Hover 68 | . 68 . Flight 74 | . . 74 Fastest Speed 40 | 50 56 40 Average Speed 106 | 121 115 92 Slowest Speed 160 | 160 160 150 Overloaded Moves . | . . . Propulsion Burnouts . | . . . Robots Hopped . | . . . Cave-ins Triggered . | . . . Exploration Rate (%) 26 | 4 37 39 Regions Visited 2 Branch Regions 1 Pre-discovered Areas 1 | . . 1 Known Exits Taken . | . . . Unknown Exits Taken 2 | 1 1 . Scrap Searched 1 | . . 1 Spaces Dug . | . . . Terrain Destroyed 46 | . 46 . Melee . | . . . Projectile . | . . . AOE 46 | . 46 . Terrain Rammed . | . . . Walls Destroyed . | . . . Machines Disabled . | . . . Actions | -11 -10 -10 --------- Run | Scr Mat Min Total 522 | 65 230 227 Wait 20 | . 7 13 Move 414 | 48 184 182 Hop . | . . . Pick Up 22 | 7 8 7 Fast Attach . | . . . Attach 21 | 6 8 7 Detach . | . . . Swap . | . . . Drop 9 | 1 4 4 Fire 33 | 3 19 11 Melee . | . . . Ram 3 | . . 3 Kick . | . . . Crush . | . . . Escape Stasis . | . . . Rewire . | . . . Trap . | . . . Miscellaneous . | . . . Route ------- -11/Scrapyard -10/Materials -10/Mines (discovered 1 exit: [*Mat]) History --------- Turn | Location | Event 6 | -11/Scrapyard | Discovered new exit (range 16) 82 | -11/Scrapyard | Entered Materials 158 | -10/Materials | Discovered new exit (range 11) 207 | -10/Materials | Lost 5 parts (2n1u2w) 317 | -10/Materials | Build established: Mutant 364 | -10/Materials | Entered Mines 378 | -10/Mines | Found a damaged Exp. Sensor Array with a note attached 381 | -10/Mines | Found Prototype Device 383 | -10/Mines | Identified Exp. Sensor Array 434 | -10/Mines | Discovered new exit (range 16) 494 | -10/Mines | Core integrity fell below 50% 519 | -10/Mines | Learned location of Storage (-8) 528 | -10/Mines | Lost 3 parts (1p2w) 566 | -10/Mines | Core integrity fell below 20% 587 | -10/Mines | Destroyed by G-47 Trooper with Particle Gun Last Messages --------------- security following our previous successful raids." World map updated: -8/Storage. 00521_ SF-GYW(g): "We scattered so the Unaware couldn't effectively use their advantage in numbers, and I suggest you do the same." 00521_ SF-GYW(g) slips back into the shadows. 00521_ Acquired 20 matter. 00529_ Dropped Exp. Sensor Array. 00534_ Lgt. Ion Engine destroyed. 00535_ A pair of derelicts emerge from the shadows: "We're, um, lost. You wouldn't happen to know the way out of here, would you?" 00552_ Dropped Flight Unit. 00561_ Dropped ECM Suite. 00576_ Acquired Imp. Heat Sink. 00577_ U-05 Engineer lays Concrete. 00578_ Acquired Beamcaster. 00579_ Acquired Heat Sink. 00580_ Acquired 37 matter. 00581_ Acquired Carbon-fiber Leg. 00582_ Acquired 1 matter. 00584_ Acquired 10 matter. Map ----- +----------------------------------------------------+ | ?????????????????????????????????????????????????? | | ?????????????????????????????????????????????????? | | ????????????????????????????#####????###?????????? | | ???????????????????????????## #??# ##????????? | | ???????????????????????????# ## #????????? | | ???????????????????????????# #????????? | | ???????????????????????????# #????????? | | ????????????????????????????# #????????? | | ?????????????????????????????# ##???????? | | ??????????????????????????????# #???????? | | ???????????????????????#####??### ## #? | | ??????????????####????## ###### #????? #?? | | ?????????????## ##??## #????????? ##?? | | ?????????????# #### ##### #?????????????? | | ?????????????# #????# #?????????????? | | ?????????????## ##????# !#?????????????? | | ?????????????## ##?????# #?????????????? | | ???????????### ######## #?????????????? | | ??????????## #?????????????? | | ??????????# ! #?????????????? | | ?????????## = ## g###### ##???????###???? | | ??????#### #### #????# #??????## ##??? | | ?????## ##??### #???## #??????# < #??? | | ?????# ##?????# #??## ####???# #??? | | ?????# ##### ##??????# #??# ##??# #??? | | ?????#?????## #???????#@ #??# #??# #??? | | ????????????# #???????# #??## #??# ##?? | | ????????????# #??????# u r#??### #??# ##? | | ????????????# #??????# #???# ##??# #? | | ????????????# ##??????# #??# ###???# !!! ## | | ???????????## #???????#u #??# #?????# ! # | | ??????????## #??????? #?# ####### ! # | | ??????????# ##?????? ## !! # | | ??????????# ##??????? ######### # | | ??????????## ???????? ## #???????### ##### | | ???????????# ???????## ##??# ##?????????# #???? | | ???????????# ????????###?????# ##??????????# #???? | | ???????????# ????????????????? #???????????# #???? | | ???????????# ????????????????? #???????????# #???? | | ???????????# ?????????????????? ???????????# #???? | | ???????????# ??????????????????????????????# #???? | | ???????????#?????????????????????????###???# #???? | | ????????????????????????????????????? #???# #???? | | ?????????????????????????????????????# #???# #???? | | ?????????????????????????????????????# #???# #???? | | ?????????????????????????????????????# #???# #???? | | ?????????????????????????????????????# #???# #???? | | ?????????????????????????????????????# #???# #???? | | ?????????????????????????????????????#!##### #???? | | ?????????????????????????????????????# #???? | +----------------------------------------------------+ Best States ------------- Heat Dissipation 25 Energy Generation 10 Energy Capacity 250 Matter Stores 300 Matter Capacity 300 Sight Range 16 Robot Scan Range 30 Terrain Scan Density 10 ECM Strength 1 Evasion (%) 62 Recoil Reduction 2 Item Schematics ----------------- None Robot Schematics ------------------ None Fabricated ------------ Nothing Alien Tech Used ----------------- None Achievements -------------- None Challenges ------------ None Game ------ Seed PointRemoteBarrier Manual? 0 Play Time 00:11:00 Cumulative 5.9 hours Start 2021.06.23 @ 00:44:00 End 2021.06.23 @ 00:52:31 Sessions 1 Manual Loads 0 Difficulty Rogue Special Mode None Game No. 12 Rogue 12 Adventurer 0 Explorer 0 Win Type - Total 0 Types 0/0/0/0/0/0/0/0/0 Lore% 11 Gallery% 16 Achievement% 12 Wizard Run 0 Options --------- ASCII 0 Keyboard 0 Movement Mouse Keybinds 0 Fullscreen 2 Font 18/SmallcapsGlow Map View 76x50 Tactical HUD 1 Map Filters NONE Filters NONE Steam 1 RUN: a08247aa-f3f8-478d-8add-7fed4f180d1a